bitfinex/quotes_BTCUSD_20250213
["timestamp","ask_amount","ask_price","bid_price","bid_amount"]
[1739411295323,0.0002383,98090.0,98089.0,1.96902215]
[1739411295535,0.0002383,98090.0,98089.0,1.95402215]
[1739411295750,0.0002383,98090.0,98089.0,1.97402215]
[1739411295964,0.0002383,98090.0,98089.0,1.89752215]
[1739411296154,0.0002383,98090.0,98089.0,1.88252215]
[1739411296607,0.0002383,98090.0,98089.0,1.89752215]
[1739411296842,0.0002383,98090.0,98089.0,1.89252215]
[1739411297236,0.0002383,98090.0,98089.0,1.89852215]
[1739411299055,0.0002383,98090.0,98089.0,1.87552215]
[1739411299625,0.0002383,98090.0,98089.0,1.89852215]
[1739411300036,0.0002383,98090.0,98089.0,0.39852215]
[1739411301120,0.0002383,98090.0,98089.0,0.37552215]
[1739411301324,0.0002383,98090.0,98089.0,0.27350365]
[1739411302098,0.0058183,98090.0,98089.0,0.27350365]
[1739411302686,0.1587383,98090.0,98089.0,0.27350365]
[1739411303073,0.16714234,98090.0,98089.0,0.27350365]
[1739411303883,0.01422234,98090.0,98089.0,0.27350365]
[1739411306540,0.16714234,98090.0,98089.0,0.27350365]
[1739411306754,0.00864234,98090.0,98089.0,1.47327074]
[1739411306984,0.00864234,98090.0,98089.0,1.66907667]
[1739411307187,0.0002383,98090.0,98089.0,1.66907667]
[1739411307406,0.0002383,98090.0,98089.0,3.16907667]
[1739411308477,0.0002383,98090.0,98089.0,3.15407667]
[1739411308890,0.0012383,98090.0,98089.0,3.15507667]
[1739411309689,0.0012383,98090.0,98089.0,3.14470588]
[1739411309889,0.0012383,98090.0,98089.0,3.13870588]
[1739411310337,0.0012383,98090.0,98089.0,3.13970588]
[1739411310724,0.0012383,98090.0,98089.0,3.29230588]
[1739411311938,0.0012383,98090.0,98089.0,3.61930588]
[1739411313396,7e-07,98098.0,98097.0,0.58442]
[1739411313603,7e-07,98098.0,98097.0,2.60919881]
[1739411313833,7e-07,98098.0,98097.0,2.65074533]
[1739411314036,7e-07,98098.0,98097.0,4.15074533]
[1739411314265,7e-07,98098.0,98097.0,4.18476576]
[1739411314696,0.0001065,98147.0,98129.0,0.15286]
[1739411314911,0.00023844,98130.0,98129.0,2.6588387]
[1739411315130,0.00023844,98130.0,98129.0,2.69285913]
[1739411315336,0.00023844,98130.0,98129.0,4.19285913]
[1739411315974,0.00023844,98130.0,98129.0,4.20785913]
[1739411316423,0.00023844,98130.0,98129.0,4.1798387]
[1739411316916,0.00023844,98130.0,98129.0,3.15597254]
[1739411317432,0.00023844,98130.0,98129.0,1.57517254]
[1739411319134,0.00023844,98130.0,98129.0,1.42231254]
[1739411319377,0.00023844,98130.0,98129.0,0.55132745]
[1739411323943,0.00023844,98130.0,98129.0,2.05132745]
[1739411324631,0.00023844,98130.0,98129.0,1.89846745]
[1739411324889,0.00023844,98130.0,98129.0,2.05132745]
[1739411326661,0.00023844,98130.0,98129.0,1.89846745]
[1739411330495,0.00023844,98130.0,98129.0,3.12972916]
[1739411330704,0.00023844,98130.0,98129.0,3.04821254]
[1739411331328,0.00023844,98130.0,98129.0,3.03321254]
[1739411331766,0.00023844,98130.0,98129.0,3.04821254]
[1739411332195,0.00023844,98130.0,98129.0,3.03321254]
[1739411332412,0.00023844,98130.0,98129.0,3.04221254]
[1739411332886,0.00023844,98130.0,98129.0,3.1514177]
[1739411333105,0.00023844,98130.0,98129.0,3.1343826]
[1739411333538,0.00023844,98130.0,98129.0,3.16845182]
[1739411333757,0.00023844,98130.0,98129.0,3.15501416]
[1739411333977,0.00023844,98130.0,98129.0,3.14801416]
[1739411334463,0.00023844,98130.0,98129.0,3.14901416]
[1739411334696,0.00023844,98130.0,98129.0,3.13401416]
[1739411334907,0.00023844,98130.0,98129.0,3.14912313]
[1739411335333,0.00023844,98130.0,98129.0,3.18419235]
[1739411335544,0.00023844,98130.0,98129.0,3.18319235]
[1739411335758,0.00023844,98130.0,98129.0,3.13301416]
[1739411335952,0.00023844,98130.0,98129.0,3.28553416]
[1739411336158,0.00023844,98130.0,98129.0,3.24768086]
[1739411336387,0.00023844,98130.0,98129.0,3.24868086]
[1739411337106,0.00023844,98130.0,98129.0,3.24968086]
[1739411340616,0.00023844,98130.0,98129.0,3.28375008]
[1739411341222,0.00023844,98130.0,98129.0,3.24968086]
[1739411342670,0.00023844,98130.0,98129.0,3.28375008]
[1739411342899,0.00023844,98130.0,98129.0,3.24968086]
[1739411343294,4.4e-07,98130.0,98129.0,3.28375008]
[1739411343726,4.4e-07,98130.0,98129.0,3.24968086]
[1739411344159,4.4e-07,98130.0,98129.0,3.28375008]
[1739411344371,4.4e-07,98130.0,98129.0,3.28734725]
[1739411344785,4.4e-07,98130.0,98129.0,3.83384725]
[1739411344990,4.4e-07,98130.0,98129.0,2.81000216]
[1739411345533,4.4e-07,98130.0,98129.0,2.77233577]
[1739411346601,4.4e-07,98130.0,98129.0,2.45280421]
[1739411346817,4.4e-07,98130.0,98129.0,2.60566421]
[1739411347028,4.4e-07,98130.0,98129.0,2.05630421]
[1739411347739,4.4e-07,98130.0,98129.0,2.05530421]
[1739411347951,4.4e-07,98130.0,98129.0,2.04773344]
[1739411348162,4.4e-07,98130.0,98129.0,2.07173344]
[1739411348371,4.4e-07,98130.0,98129.0,2.06127009]
[1739411348579,0.00700044,98130.0,98129.0,2.03927009]
[1739411348798,0.00700044,98130.0,98129.0,2.03827009]
[1739411349008,0.00700044,98130.0,98129.0,2.03098745]
[1739411349218,0.00800044,98130.0,98129.0,2.03798745]
[1739411349435,0.00800044,98130.0,98129.0,2.03698745]
[1739411349684,0.00900044,98130.0,98129.0,2.02898745]
[1739411349894,0.01458044,98130.0,98129.0,1.92702365]
[1739411350291,0.01458044,98130.0,98129.0,2.02900055]
[1739411350503,0.01458044,98130.0,98129.0,0.52900055]
[1739411350920,0.02345831,98130.0,98129.0,0.52900055]
[1739411351126,0.01458044,98130.0,98129.0,0.52900055]
[1739411351977,0.01458044,98130.0,98129.0,0.37900055]
[1739411352188,0.01458044,98130.0,98129.0,0.17452]
[1739411352189,0.05988044,98130.0,98129.0,0.17452]
[1739411352397,0.05988044,98130.0,98129.0,0.18284]
[1739411352662,0.06883241,98130.0,98129.0,0.18284]
[1739411352926,0.06883241,98130.0,98129.0,0.022]
[1739411353187,0.06783241,98130.0,98129.0,0.007]
[1739411353419,0.14423241,98130.0,98129.0,0.021]
[1739411353897,0.14323241,98130.0,98129.0,0.007]
[1739411354133,0.14423241,98130.0,98129.0,0.021]
[1739411354349,0.15448098,98130.0,98129.0,0.021]
[1739411354570,0.15348098,98130.0,98129.0,0.007]
[1739411354812,0.15348098,98130.0,98114.0,0.1019866]
[1739411354813,0.00558,98116.0,98115.0,0.15]
[1739411355050,0.00558,98116.0,98115.0,0.25250365]
[1739411355288,0.00558,98116.0,98115.0,0.24502919]
[1739411356231,0.08538,98116.0,98115.0,0.24902919]
[1739411356470,0.09420694,98116.0,98115.0,0.24902919]
[1739411356689,0.09420694,98116.0,98115.0,0.004]
[1739411356942,0.14400694,98116.0,98115.0,0.004]
[1739411357152,0.14400694,98116.0,98115.0,0.019]
[1739411357360,0.14500694,98116.0,98115.0,0.019]
[1739411357776,0.14500694,98116.0,98115.0,0.023]
[1739411358008,0.14500694,98116.0,98115.0,0.015]
[1739411358210,0.14500694,98116.0,98115.0,0.019]
[1739411358635,0.29788694,98116.0,98115.0,0.019]
[1739411363953,0.29788694,98116.0,98115.0,0.01922365]
[1739411364315,0.29799344,98116.0,98115.0,0.01922365]
[1739411370547,0.00993344,98116.0,98115.0,0.17210465]
[1739411370761,0.01551344,98116.0,98115.0,0.2746083]
[1739411370967,0.0066865,98116.0,98115.0,0.2746083]
[1739411372886,0.0011065,98116.0,98115.0,0.4246083]
[1739411373511,0.0011065,98116.0,98115.0,0.4476083]
[1739411373948,0.0011065,98116.0,98115.0,0.5239083]
[1739411374551,0.0011065,98116.0,98115.0,2.0239083]
[1739411375694,0.0011065,98116.0,98115.0,3.04775339]
[1739411375927,0.0011065,98116.0,98115.0,3.05781847]
[1739411376097,0.0011065,98116.0,98115.0,3.05532877]
[1739411377246,0.0011065,98116.0,98115.0,3.06563503]
[1739411377605,0.0011065,98116.0,98115.0,3.05532877]
[1739411383063,0.0011065,98116.0,98115.0,2.97902877]
[1739411384935,0.0011065,98116.0,98115.0,1.95518368]
[1739411388309,0.0001065,98116.0,98115.0,1.94018368]
[1739411388470,0.0001065,98116.0,98115.0,1.93618368]
[1739411388672,0.0011065,98116.0,98115.0,1.95118368]
[1739411388873,0.0021065,98116.0,98115.0,1.95818368]
[1739411395497,0.0076865,98116.0,98115.0,1.63230268]
[1739411395997,0.1605665,98116.0,98115.0,1.63230268]
[1739411396203,0.0076865,98116.0,98115.0,1.63230268]
[1739411396652,0.0056865,98116.0,98115.0,0.11030268]
[1739411396852,0.0056865,98116.0,98115.0,0.1097273]
[1739411397052,0.01450944,98116.0,98115.0,0.1247273]
[1739411397211,0.0056865,98116.0,98115.0,0.1177273]
[1739411397405,0.0056865,98116.0,98115.0,0.1027273]
[1739411397662,0.0056865,98116.0,98115.0,0.1077273]
[1739411397863,0.0056865,98116.0,98115.0,0.1227273]
[1739411398022,0.0056865,98116.0,98115.0,0.2756083]
[1739411398219,0.0056865,98116.0,98115.0,0.2556083]
[1739411398421,0.0056865,98116.0,98115.0,0.2706083]
[1739411399760,0.0056865,98116.0,98115.0,0.2586083]
[1739411399973,0.0056865,98116.0,98115.0,0.2706083]
[1739411400181,0.0056865,98116.0,98115.0,0.2736083]
[1739411400581,0.01450944,98116.0,98115.0,1.7556083]
[1739411400886,0.0056865,98116.0,98115.0,1.7746083]
[1739411401731,0.0056865,98116.0,98115.0,0.2746083]
[1739411402130,0.0056865,98116.0,98115.0,0.1217273]
[1739411402580,0.0056865,98116.0,98115.0,0.2746083]
[1739411403145,0.0056865,98116.0,98115.0,0.2556083]
[1739411403264,0.0056865,98116.0,98115.0,0.2706083]
[1739411403466,0.01450944,98116.0,98115.0,0.2746083]
[1739411403908,0.0056865,98116.0,98115.0,0.2746083]
[1739411404308,0.01450944,98116.0,98115.0,0.2746083]
[1739411404502,0.0056865,98116.0,98115.0,0.2746083]
[1739411405274,0.01450463,98116.0,98115.0,0.2746083]
[1739411405470,0.0056865,98116.0,98115.0,0.1217273]
[1739411405680,0.01450463,98116.0,98115.0,1.7746083]
[1739411405893,0.0056865,98116.0,98115.0,1.7746083]
[1739411407202,0.0001065,98116.0,98115.0,1.9476083]
[1739411407411,0.0001065,98116.0,98115.0,2.0298083]
[1739411407905,0.0050865,98126.0,98125.0,0.302866]
[1739411408115,0.0050865,98126.0,98125.0,0.53034695]
[1739411409150,0.0050865,98126.0,98125.0,0.53793727]
[1739411409460,0.0050865,98126.0,98125.0,0.55393727]
[1739411409673,0.0050865,98126.0,98125.0,0.55293727]
[1739411409879,0.0050865,98126.0,98125.0,0.55793727]
[1739411410327,0.0050865,98126.0,98125.0,1.88207127]
[1739411410525,0.0050865,98126.0,98125.0,0.38207127]
[1739411410969,0.09440998,98126.0,98125.0,0.27956762]
[1739411411187,0.2384505,98126.0,98125.0,0.17759032]
[1739411411413,0.24727398,98126.0,98125.0,0.17759032]
[1739411411624,0.09451648,98126.0,98125.0,0.17759032]
[1739411411829,0.09451648,98126.0,98125.0,0.17]
[1739411412258,0.238557,98126.0,98125.0,0.17]
[1739411412713,0.247384,98126.0,98125.0,0.17]
[1739411413411,0.09452,98126.0,98125.0,0.02]
[1739411413564,0.247384,98126.0,98125.0,0.02812]
[1739411413776,0.247384,98126.0,98125.0,0.02]
[1739411416005,0.09452,98126.0,98125.0,0.02]
[1739411416215,0.09452,98126.0,98125.0,0.02808]
[1739411416615,0.005193,98126.0,98125.0,0.180946]
[1739411416819,0.005193,98126.0,98125.0,0.172866]
[1739411417116,0.01401475,98126.0,98125.0,0.172866]
[1739411417295,0.0001065,98126.0,98125.0,0.172866]
[1739411417496,0.0140239,98126.0,98125.0,0.02]
[1739411417701,0.005193,98126.0,98125.0,0.02]
[1739411417922,0.0089374,98126.0,98125.0,0.02]
[1739411418172,0.005193,98126.0,98125.0,0.172866]
[1739411418574,0.005193,98126.0,98125.0,0.27536965]
[1739411421364,0.005193,98126.0,98125.0,0.42536965]
[1739411422004,0.005193,98126.0,98125.0,0.44836965]
[1739411422204,0.005193,98126.0,98125.0,0.55034915]
[1739411422949,0.005193,98126.0,98125.0,0.55794454]
[1739411424021,0.005193,98126.0,98125.0,2.05794454]
[1739411424850,0.005193,98126.0,98125.0,0.39157329]
[1739411430301,0.005193,98126.0,98125.0,0.54443929]
[1739411431718,0.005193,98126.0,98125.0,0.39157329]
[1739411432125,0.005193,98126.0,98125.0,0.54443929]
[1739411432373,0.005193,98126.0,98125.0,0.13906964]
[1739411432374,0.158057,98126.0,98125.0,0.13906964]
[1739411432577,0.158057,98126.0,98125.0,0.03709014]
[1739411432777,0.1670556,98126.0,98125.0,0.03709014]
[1739411433013,0.1670556,98126.0,98125.0,0.02949475]
[1739411433182,0.18763142,98126.0,98125.0,0.02]
[1739411433585,0.18763142,98126.0,98125.0,0.005]
[1739411433983,0.18763142,98126.0,98125.0,0.02]
[1739411434453,0.18763142,98126.0,98125.0,0.005]
[1739411434831,0.18763142,98126.0,98125.0,0.02]
[1739411435571,0.26503142,98126.0,98125.0,0.015]
[1739411435778,0.31263142,98126.0,98125.0,0.015]
[1739411435987,0.31263142,98126.0,98125.0,0.019]
[1739411436611,0.31263142,98126.0,98125.0,0.015]
[1739411436816,0.15287,98122.0,98121.0,0.00022365]
[1739411437023,0.2342565,98122.0,98121.0,0.00022365]
[1739411437234,0.24324822,98122.0,98121.0,0.00022365]
[1739411438005,0.24324822,98122.0,98121.0,0.00822365]
[1739411439777,0.24424822,98122.0,98121.0,0.00022365]
[1739411440083,0.24524822,98122.0,98121.0,0.00122365]
[1739411440731,0.24524822,98122.0,98121.0,0.00022365]
[1739411440941,0.24524822,98122.0,98121.0,0.00122365]
[1739411449077,0.09237822,98122.0,98121.0,0.00122365]
[1739411449288,0.16894822,98122.0,98121.0,0.00122365]
[1739411451699,0.24454822,98122.0,98121.0,0.00122365]
[1739411452578,0.24254822,98122.0,98121.0,0.00122365]
[1739411452911,0.24354822,98122.0,98121.0,0.00122365]
[1739411453204,0.24354822,98122.0,98121.0,0.00022365]
[1739411453692,0.24354822,98122.0,98121.0,0.00122365]
[1739411457451,0.16794822,98122.0,98121.0,0.00122365]
[1739411458696,0.16286172,98122.0,98121.0,0.00122365]
[1739411459259,0.16794822,98122.0,98121.0,0.00122365]
[1739411459500,0.16286172,98122.0,98121.0,0.00122365]
[1739411459684,0.16794822,98122.0,98121.0,0.00122365]
[1739411464280,0.24654822,98122.0,98121.0,0.00122365]
[1739411466906,0.16794822,98122.0,98121.0,0.00122365]
[1739411469494,0.16805472,98122.0,98121.0,0.00122365]
[1739411474183,0.01518472,98122.0,98121.0,0.00122365]
[1739411474394,0.01518472,98122.0,98121.0,0.23429565]
[1739411474835,0.006193,98122.0,98121.0,0.23429565]
[1739411475468,0.006193,98122.0,98121.0,0.3357993]
[1739411475613,0.005193,98122.0,98121.0,0.3377993]
[1739411475962,0.006193,98122.0,98121.0,0.1849273]
[1739411476201,0.006193,98122.0,98121.0,0.1829273]
[1739411476338,0.01516964,98122.0,98121.0,0.1829273]
[1739411476712,0.006193,98122.0,98121.0,0.1919273]
[1739411476941,0.006193,98122.0,98121.0,0.3447993]
[1739411477062,0.006193,98122.0,98121.0,0.1919273]
[1739411477259,0.01416964,98122.0,98121.0,0.1919273]
[1739411478657,0.005193,98122.0,98121.0,0.1919273]
[1739411478806,0.01418112,98122.0,98121.0,0.1919273]
[1739411480031,0.16705112,98122.0,98121.0,0.1117273]
[1739411480238,0.16705112,98122.0,98121.0,0.00922365]
[1739411482316,0.24965112,98122.0,98121.0,0.00922365]
[1739411482531,0.1579925,98099.0,98089.0,0.00022344]
[1739411482936,0.16694584,98099.0,98089.0,0.00022344]
[1739411483852,0.16694584,98099.0,98098.0,0.00235525]
[1739411484527,0.17694603,98099.0,98098.0,0.00235525]
[1739411485466,0.17794603,98099.0,98098.0,0.01435525]
[1739411485971,0.17694603,98099.0,98098.0,0.00235525]
[1739411486175,0.24935352,98099.0,98098.0,0.00735525]
[1739411486375,0.17694603,98099.0,98098.0,0.00535525]
[1739411486814,0.17794603,98099.0,98098.0,0.00535525]
[1739411487468,0.17694603,98099.0,98098.0,0.00535525]
[1739411487961,0.17694603,98099.0,98098.0,0.00035525]
[1739411488217,0.17694603,98099.0,98098.0,0.00135525]
[1739411488515,0.19786333,98099.0,98098.0,0.00135525]
[1739411488728,0.19786333,98099.0,98098.0,0.00035525]
[1739411489131,0.19786333,98099.0,98098.0,0.00135525]
[1739411490074,0.19277683,98099.0,98098.0,0.00135525]
[1739411490312,0.19786333,98099.0,98098.0,0.00135525]
[1739411503529,0.1679292,98090.0,98089.0,0.00022344]
[1739411503941,0.17687569,98090.0,98089.0,0.00022344]
[1739411504350,0.25467569,98090.0,98089.0,0.00022344]
[1739411505314,0.25467569,98090.0,98089.0,0.00122344]
[1739411506670,0.25767569,98090.0,98089.0,0.00122344]
[1739411509395,0.1580335,98073.0,98072.0,0.00166344]
[1739411509607,0.1679562,98073.0,98072.0,0.00166344]
[1739411509826,0.25414982,98073.0,98072.0,0.00166344]
[1739411510773,0.26814982,98073.0,98072.0,0.00266344]
[1739411511584,0.27488849,98073.0,98072.0,0.00166344]
[1739411511922,0.27888849,98073.0,98072.0,0.00166344]
[1739411512267,0.19176579,98073.0,98072.0,0.00166344]
[1739411512914,0.19676579,98073.0,98072.0,0.00166344]
[1739411513114,0.19276579,98073.0,98072.0,0.00166344]
[1739411513316,0.19376579,98073.0,98072.0,0.00166344]
[1739411513745,0.18876579,98073.0,98072.0,0.00166344]
[1739411513915,0.19276579,98073.0,98072.0,0.00166344]
[1739411514122,0.19176579,98073.0,98072.0,0.00166344]
[1739411514528,0.19976579,98073.0,98072.0,0.00166344]
[1739411514776,0.19576579,98073.0,98072.0,0.00166344]
[1739411515186,0.19876579,98073.0,98072.0,0.00166344]
[1739411516460,0.18776579,98073.0,98072.0,0.00166344]
[1739411516862,0.19276579,98073.0,98072.0,0.00166344]
[1739411517295,0.19176579,98073.0,98072.0,0.00166344]
[1739411517479,0.19476579,98073.0,98072.0,0.00166344]
[1739411517610,0.19076579,98073.0,98072.0,0.00166344]
[1739411517829,0.19476579,98073.0,98072.0,0.00166344]
[1739411519515,0.18876579,98073.0,98072.0,0.00166344]
[1739411519887,0.19176579,98073.0,98072.0,0.00166344]
[1739411520101,0.19076579,98073.0,98072.0,0.00166344]
[1739411524365,0.03781879,98073.0,98072.0,0.00166344]
[1739411524565,0.19076579,98073.0,98072.0,0.00166344]
[1739411525627,0.18776579,98073.0,98072.0,0.00166344]
[1739411526037,0.18876579,98073.0,98072.0,0.00166344]
[1739411527085,0.18876579,98073.0,98072.0,0.00366344]
[1739411528775,0.01508012,98073.0,98072.0,0.15416709]
[1739411529182,0.0060865,98073.0,98072.0,0.10616709]
[1739411529688,0.01508575,98073.0,98072.0,0.10616709]
[1739411529889,0.001,98073.0,98072.0,0.10616709]
[1739411530110,0.0060865,98073.0,98072.0,0.12916709]
[1739411531087,0.0060865,98073.0,98072.0,0.10616709]
[1739411531088,0.1590335,98073.0,98072.0,0.10616709]
[1739411531290,0.01507612,98073.0,98072.0,0.00366344]
[1739411531523,0.0060865,98073.0,98072.0,0.00366344]
[1739411531947,0.01507683,98073.0,98072.0,0.00366344]
[1739411532179,0.16802383,98073.0,98072.0,0.00366344]
[1739411532805,0.01507683,98073.0,98072.0,0.00366344]
[1739411533648,0.01507683,98073.0,98072.0,0.25911509]
[1739411533649,0.00999033,98073.0,98072.0,0.25911509]
[1739411533847,0.01507683,98073.0,98072.0,0.25911509]
[1739411534073,0.0060865,98073.0,98072.0,0.25911509]
[1739411535350,0.01507477,98073.0,98072.0,0.10616709]
[1739411535907,0.0060865,98073.0,98072.0,0.10616709]
[1739411536076,0.01507566,98073.0,98072.0,0.10616709]
[1739411536284,0.16802266,98073.0,98072.0,0.00366344]
[1739411536493,0.01507566,98073.0,98072.0,0.00366344]
[1739411537960,0.16802266,98073.0,98072.0,0.00366344]
[1739411541816,0.01507566,98073.0,98072.0,0.00366344]
[1739411545784,0.16802266,98073.0,98072.0,0.00366344]
[1739411547319,0.01507566,98073.0,98072.0,0.00366344]
[1739411550677,0.16802266,98073.0,98072.0,0.00366344]
[1739411551162,0.00998916,98073.0,98072.0,0.45851509]
[1739411551394,0.001,98073.0,98072.0,0.58354859]
[1739411551820,0.001,98073.0,98072.0,2.09375042]
[1739411552005,0.001,98073.0,98072.0,2.17265042]
[1739411552246,0.0050865,98092.0,98088.0,0.423923]
[1739411552450,0.0050865,98092.0,98088.0,0.65143825]
[1739411552867,0.0050865,98092.0,98088.0,2.15143825]
[1739411553424,0.0050865,98092.0,98088.0,2.15905573]
[1739411553621,0.0050865,98092.0,98088.0,2.16305573]
[1739411553852,0.0001066,98098.0,98088.0,2.16305573]
[1739411555259,0.0011066,98089.0,98088.0,2.17705573]
[1739411556001,0.0011066,98089.0,98088.0,2.32969573]
[1739411562377,0.0011066,98089.0,98088.0,2.32207825]
[1739411567168,0.0001066,98098.0,98089.0,0.302922]
[1739411567169,5.5e-07,98090.0,98089.0,0.302922]
[1739411567385,5.5e-07,98090.0,98089.0,0.55642565]
[1739411567818,5.5e-07,98090.0,98089.0,2.60292565]
[1739411568030,1.5e-07,98098.0,98097.0,0.453909]
[1739411568242,1.5e-07,98098.0,98097.0,0.55641265]
[1739411568647,1.5e-07,98098.0,98097.0,2.05641265]
[1739411569263,0.00700015,98098.0,98097.0,2.05741265]
[1739411569827,0.01800015,98098.0,98097.0,2.09248187]
[1739411570232,0.01800015,98098.0,98097.0,2.05841265]
[1739411571041,0.01800015,98098.0,98097.0,2.09248187]
[1739411571251,0.01800015,98098.0,98097.0,2.05841265]
[1739411571565,0.01800015,98098.0,98097.0,2.09248187]
[1739411571759,0.01800015,98098.0,98097.0,2.05841265]
[1739411572190,0.01800015,98098.0,98097.0,2.09248187]
[1739411572587,0.01800015,98098.0,98097.0,2.05841265]
[1739411572843,0.00800015,98098.0,98097.0,2.05841265]
[1739411573040,0.0001065,98130.0,98114.0,0.302883]
[1739411573355,0.0001065,98130.0,98114.0,2.73703942]
[1739411573561,0.0001065,98130.0,98114.0,3.06403942]
[1739411573763,0.0001065,98130.0,98114.0,4.56403942]
[1739411574180,0.0031066,98115.0,98114.0,4.56503942]
[1739411575422,0.0031066,98115.0,98114.0,4.56603942]
[1739411576278,0.0031066,98115.0,98114.0,4.58660333]
[1739411576486,0.0031066,98115.0,98114.0,4.58441958]
[1739411578389,0.0031066,98115.0,98114.0,4.55253411]
[1739411582037,0.0031066,98115.0,98114.0,4.70509411]
[1739411594070,6e-07,98115.0,98114.0,4.70509411]
[1739411594290,6e-07,98115.0,98114.0,5.25159411]
[1739411594472,1e-07,98122.0,98121.0,0.625872]
[1739411594705,0.00012121,98122.0,98121.0,1.60187565]
[1739411595190,0.00012121,98122.0,98121.0,3.10187565]
[1739411596141,2.1e-07,98122.0,98121.0,3.17937565]
[1739411596793,2.1e-07,98122.0,98121.0,3.18137565]
[1739411597213,2.1e-07,98130.0,98129.0,0.30286]
[1739411597359,2.1e-07,98130.0,98129.0,1.63577991]
[1739411597759,2.1e-07,98130.0,98129.0,3.13577991]
[1739411598055,2.1e-07,98130.0,98129.0,4.16977594]
[1739411598408,2.1e-07,98130.0,98129.0,4.17077594]
[1739411598827,2.1e-07,98130.0,98129.0,4.21637594]
[1739411599029,2.1e-07,98130.0,98129.0,4.21737594]
[1739411599230,2.1e-07,98130.0,98129.0,4.58085143]
[1739411600234,2.1e-07,98130.0,98129.0,4.54728944]
[1739411600432,2.1e-07,98130.0,98129.0,4.58085968]
[1739411603176,2.1e-07,98130.0,98129.0,5.12735968]
[1739411606088,2.1e-07,98130.0,98129.0,5.1477201]
[1739411610333,2.1e-07,98130.0,98129.0,5.1467201]
[1739411610530,2.1e-07,98130.0,98129.0,5.1477201]
[1739411610740,2.1e-07,98130.0,98129.0,5.3002401]
[1739411611091,2.1e-07,98130.0,98129.0,5.2992401]
[1739411612058,2.1e-07,98130.0,98129.0,5.2982401]
[1739411612226,2.1e-07,98130.0,98129.0,5.2992401]
[1739411612543,2.1e-07,98130.0,98129.0,5.3002401]
[1739411612696,2.1e-07,98130.0,98129.0,5.2992401]
[1739411612903,2.1e-07,98130.0,98129.0,5.3002401]
[1739411613091,2.1e-07,98130.0,98129.0,5.3012401]
[1739411614075,2.1e-07,98130.0,98129.0,5.2992401]
[1739411614209,2.1e-07,98130.0,98129.0,5.3002401]
[1739411614762,2.1e-07,98130.0,98129.0,5.2992401]
[1739411614957,2.1e-07,98130.0,98129.0,5.3002401]
[1739411615535,2.1e-07,98130.0,98129.0,5.2992401]
[1739411615951,2.1e-07,98130.0,98129.0,5.3002401]
[1739411616359,2.1e-07,98130.0,98129.0,5.2992401]
[1739411616558,2.1e-07,98130.0,98129.0,5.3012401]
[1739411616803,2.1e-07,98130.0,98129.0,5.2992401]
[1739411617166,2.1e-07,98130.0,98129.0,5.3002401]
[1739411617374,2.1e-07,98130.0,98129.0,5.2992401]
[1739411617773,2.1e-07,98130.0,98129.0,5.2982401]
[1739411618094,2.1e-07,98130.0,98129.0,5.2992401]
[1739411618689,2.1e-07,98130.0,98129.0,5.3002401]
[1739411618897,2.1e-07,98130.0,98129.0,5.2992401]
[1739411619283,2.1e-07,98130.0,98129.0,5.3002401]
[1739411620665,2.1e-07,98130.0,98129.0,5.2546401]
[1739411621357,2.1e-07,98130.0,98129.0,5.25486375]
[1739411624061,2.1e-07,98130.0,98129.0,5.17326375]
[1739411624269,2.1e-07,98130.0,98129.0,5.14535025]
[1739411624473,2.1e-07,98130.0,98129.0,4.24028001]
[1739411624899,2.1e-07,98130.0,98129.0,4.26228001]
[1739411625281,2.1e-07,98130.0,98129.0,4.23928001]
[1739411625488,0.07880021,98130.0,98129.0,4.24028001]
[1739411625657,0.07880021,98130.0,98129.0,4.27000001]
[1739411626283,2.1e-07,98130.0,98129.0,4.27000001]
[1739411626605,2.1e-07,98130.0,98129.0,4.10976001]
[1739411627409,0.00400021,98130.0,98129.0,4.11076001]
[1739411627586,0.00400021,98130.0,98129.0,2.07076876]
[1739411627808,0.00400021,98130.0,98129.0,2.06304876]
[1739411628593,0.00400021,98130.0,98129.0,2.09470372]
[1739411628817,0.00400021,98130.0,98129.0,2.06304876]
[1739411629015,0.00400021,98130.0,98129.0,2.21556876]
[1739411633139,0.00400021,98130.0,98129.0,1.7066774]
[1739411633140,0.12980021,98130.0,98129.0,1.7066774]
[1739411633342,0.13488671,98130.0,98129.0,1.8566774]
[1739411633549,0.13488671,98130.0,98129.0,1.7066774]
[1739411633753,0.13488671,98130.0,98129.0,1.8566774]
[1739411633985,0.13088671,98130.0,98129.0,1.8556774]
[1739411634423,0.13088671,98130.0,98129.0,1.8696774]
[1739411634604,0.13932151,98130.0,98129.0,1.8696774]
[1739411634834,0.13188671,98130.0,98129.0,1.8616774]
[1739411635035,0.29317951,98130.0,98129.0,1.7046774]
[1739411635247,0.28474471,98130.0,98129.0,1.61717375]
[1739411635484,0.29417951,98130.0,98129.0,0.12417375]
[1739411636221,0.29217951,98130.0,98129.0,0.11717375]
[1739411636454,0.29217951,98130.0,98129.0,0.10717375]
[1739411636703,0.13932151,98130.0,98129.0,0.10717375]
[1739411636936,0.14032151,98130.0,98129.0,0.11117375]
[1739411637380,0.14032151,98130.0,98129.0,0.10717375]
[1739411637381,0.13932151,98130.0,98129.0,0.10717375]
[1739411637665,0.14032151,98130.0,98129.0,0.10617375]
[1739411637902,0.13188671,98130.0,98129.0,0.10617375]
[1739411638133,0.13188671,98130.0,98129.0,0.11117375]
[1739411638605,0.28474471,98130.0,98129.0,0.11117375]
[1739411638848,0.12680021,98130.0,98129.0,0.2366774]
[1739411639089,0.00949573,98130.0,98129.0,0.5395374]
[1739411639343,0.00100021,98130.0,98129.0,0.5395374]
[1739411639573,0.00100021,98130.0,98129.0,2.0395374]
[1739411640045,2.1e-07,98130.0,98129.0,2.0355374]
[1739411640290,0.00100021,98130.0,98129.0,2.0505374]
[1739411640756,0.00100021,98130.0,98129.0,2.0455374]
[1739411640964,0.00100021,98130.0,98129.0,2.0525374]
[1739411643247,2.1e-07,98130.0,98129.0,3.3055374]
[1739411643453,2.1e-07,98130.0,98129.0,3.3104509]
[1739411644273,0.0001065,98147.0,98146.0,0.302833]
[1739411644477,0.0001065,98147.0,98146.0,2.5779879]
[1739411644478,0.00015049,98147.0,98146.0,2.5779879]
[1739411644893,0.00015049,98147.0,98146.0,4.0779879]
[1739411645092,0.00015049,98147.0,98146.0,4.08838555]
[1739411645279,0.00015049,98147.0,98146.0,4.24090555]
[1739411645902,0.00015049,98147.0,98146.0,4.24790555]
[1739411646080,0.00015049,98147.0,98146.0,4.26290555]
[1739411648630,0.00015049,98147.0,98146.0,4.28340959]
[1739411650511,4.9e-07,98147.0,98146.0,4.58340959]
[1739411650710,4.9e-07,98147.0,98146.0,4.66210959]
[1739411651113,4.9e-07,98147.0,98146.0,5.12990959]
[1739411651480,4.9e-07,98147.0,98146.0,5.12290959]
[1739411651893,4.9e-07,98147.0,98146.0,5.10890959]
[1739411652262,4.9e-07,98147.0,98146.0,5.10990959]
[1739411652747,4.9e-07,98147.0,98146.0,5.10890959]
[1739411652953,4.9e-07,98147.0,98146.0,5.10990959]
[1739411653804,0.0754,98160.0,98157.0,0.302815]
[1739411653983,0.0754,98160.0,98159.0,0.023]